[Event "Titled Tuesday Blitz June 20 Late 2023"]
[White "Velikanov, Alexander"]
[Black "Nakamura, Hikaru"]
[WhiteFideId "2039290"]
[BlackFideId "2016192"]
[WhiteElo "2259"]
[BlackElo "2874"]
[Result "0-1"]
[Round "8"]
[TimeControl "180+2"]
[Date "2023.06.20"]
[WhiteClock "0:00:07"]
[BlackClock "0:00:39"]
[Board "15"]

1. e4 {[%clk 0:03:00]}  c6 {[%clk 0:02:47]} 2. Nc3 {[%clk 0:02:57]}  d5 {[%clk 0:02:42]} 3. Nf3 {[%clk 0:02:57]}  Bg4 {[%clk 0:02:31]} 4. h3 {[%clk 0:02:56]}  Bxf3 {[%clk 0:02:30]} 5. Qxf3 {[%clk 0:02:57]}  e6 {[%clk 0:02:30]} 6. d4 {[%clk 0:02:56]}  dxe4 {[%clk 0:02:28]} 7. Nxe4 {[%clk 0:02:56]}  Qxd4 {[%clk 0:02:28]} 8. Bd3 {[%clk 0:02:55]}  Nd7 {[%clk 0:02:27]} 9. Bf4 {[%clk 0:02:45]}  Ne5 {[%clk 0:02:26]} 10. Bxe5 {[%clk 0:02:45]}  Qxe5 {[%clk 0:02:26]} 11. O-O-O {[%clk 0:02:42]}  Nf6 {[%clk 0:02:20]} 12. Rhe1 {[%clk 0:02:32]}  O-O-O {[%clk 0:02:09]} 13. Kb1 {[%clk 0:02:16]}  Be7 {[%clk 0:02:01]} 14. Nxf6 {[%clk 0:01:52]}  Qxf6 {[%clk 0:02:02]} 15. Qxf6 {[%clk 0:01:52]}  Bxf6 {[%clk 0:02:00]} 16. c3 {[%clk 0:01:47]}  h5 {[%clk 0:01:53]} 17. Be4 {[%clk 0:01:42]}  Rde8 {[%clk 0:01:51]} 18. Kc2 {[%clk 0:01:34]}  h4 {[%clk 0:01:50]} 19. b4 {[%clk 0:01:24]}  Rh5 {[%clk 0:01:45]} 20. a4 {[%clk 0:01:21]}  a5 {[%clk 0:01:45]} 21. Bf3 {[%clk 0:01:20]}  Rf5 {[%clk 0:01:45]} 22. Re4 {[%clk 0:01:16]}  Kc7 {[%clk 0:01:42]} 23. Kb3 {[%clk 0:01:12]}  Ra8 {[%clk 0:01:35]} 24. Rc4 {[%clk 0:01:01]}  axb4 {[%clk 0:01:23]} 25. cxb4 {[%clk 0:01:01]}  Rxa4 {[%clk 0:00:57]} 26. Kxa4 {[%clk 0:00:47]}  b5+ {[%clk 0:00:57]} 27. Kb3 {[%clk 0:00:48]}  bxc4+ {[%clk 0:00:57]} 28. Kxc4 {[%clk 0:00:49]}  Rf4+ {[%clk 0:00:53]} 29. Kb3 {[%clk 0:00:49]}  Be7 {[%clk 0:00:53]} 30. Rc1 {[%clk 0:00:36]}  Rxb4+ {[%clk 0:00:52]} 31. Kc3 {[%clk 0:00:36]}  Rb6 {[%clk 0:00:51]} 32. Rc2 {[%clk 0:00:35]}  f5 {[%clk 0:00:51]} 33. Ra2 {[%clk 0:00:32]}  Bf6+ {[%clk 0:00:51]} 34. Kc4 {[%clk 0:00:30]}  e5 {[%clk 0:00:52]} 35. Ra7+ {[%clk 0:00:25]}  Kd6 {[%clk 0:00:52]} 36. Bh5 {[%clk 0:00:24]}  Rb2 {[%clk 0:00:50]} 37. Be8 {[%clk 0:00:18]}  e4 {[%clk 0:00:48]} 38. Bd7 {[%clk 0:00:15]}  Rxf2 {[%clk 0:00:48]} 39. Bc8 {[%clk 0:00:07]}  e3 {[%clk 0:00:39]} 0-1


[Site "https://www.chess.com"]

[Event "Titled Tuesday Blitz June 20 Late 2023"]
[White "Kramnik, Vladimir"]
[Black "Oro, Faustino"]
[WhiteFideId "4101588"]
[BlackFideId "20000197"]
[WhiteElo "2703"]
[BlackElo "1984"]
[Result "1/2-1/2"]
[Round "8"]
[TimeControl "180+2"]
[Date "2023.06.20"]
[WhiteClock "0:00:04"]
[BlackClock "0:00:08"]
[Board "16"]

1. e4 {[%clk 0:03:00]}  e5 {[%clk 0:02:57]} 2. Nf3 {[%clk 0:02:59]}  Nc6 {[%clk 0:02:56]} 3. Bc4 {[%clk 0:02:59]}  Bc5 {[%clk 0:02:56]} 4. O-O {[%clk 0:02:58]}  Nf6 {[%clk 0:02:56]} 5. d3 {[%clk 0:02:58]}  d6 {[%clk 0:02:57]} 6. c3 {[%clk 0:02:57]}  O-O {[%clk 0:02:57]} 7. Re1 {[%clk 0:02:55]}  h6 {[%clk 0:02:57]} 8. a4 {[%clk 0:02:51]}  a6 {[%clk 0:02:55]} 9. Nbd2 {[%clk 0:02:50]}  Ba7 {[%clk 0:02:55]} 10. Nf1 {[%clk 0:02:49]}  Ne7 {[%clk 0:02:55]} 11. d4 {[%clk 0:02:38]}  Ng6 {[%clk 0:02:53]} 12. h3 {[%clk 0:02:19]}  Re8 {[%clk 0:02:35]} 13. Ng3 {[%clk 0:02:15]}  Be6 {[%clk 0:02:32]} 14. Bxe6 {[%clk 0:02:06]}  Rxe6 {[%clk 0:02:32]} 15. Be3 {[%clk 0:02:06]}  Qd7 {[%clk 0:01:43]} 16. dxe5 {[%clk 0:01:54]}  Nxe5 {[%clk 0:01:44]} 17. Nxe5 {[%clk 0:01:38]}  Rxe5 {[%clk 0:01:43]} 18. Bxa7 {[%clk 0:01:38]}  Rxa7 {[%clk 0:01:44]} 19. f4 {[%clk 0:01:37]}  Re8 {[%clk 0:01:44]} 20. e5 {[%clk 0:01:36]}  dxe5 {[%clk 0:01:31]} 21. fxe5 {[%clk 0:01:36]}  Nd5 {[%clk 0:01:31]} 22. c4 {[%clk 0:01:20]}  Nb6 {[%clk 0:01:31]} 23. b3 {[%clk 0:01:19]}  Qe6 {[%clk 0:01:23]} 24. Qd4 {[%clk 0:01:05]}  Raa8 {[%clk 0:01:17]} 25. Rad1 {[%clk 0:01:05]}  Re7 {[%clk 0:01:01]} 26. Qe4 {[%clk 0:01:04]}  Rb8 {[%clk 0:00:39]} 27. Nf5 {[%clk 0:01:01]}  Rd7 {[%clk 0:00:39]} 28. Qg4 {[%clk 0:00:57]}  Qg6 {[%clk 0:00:34]} 29. Qxg6 {[%clk 0:00:37]}  fxg6 {[%clk 0:00:35]} 30. Rxd7 {[%clk 0:00:37]}  Nxd7 {[%clk 0:00:34]} 31. Ne7+ {[%clk 0:00:35]}  Kf7 {[%clk 0:00:19]} 32. Nd5 {[%clk 0:00:35]}  Re8 {[%clk 0:00:18]} 33. Nxc7 {[%clk 0:00:25]}  Rxe5 {[%clk 0:00:18]} 34. Rxe5 {[%clk 0:00:25]}  Nxe5 {[%clk 0:00:19]} 35. Kf2 {[%clk 0:00:24]}  Nd3+ {[%clk 0:00:19]} 36. Ke3 {[%clk 0:00:23]}  Nc5 {[%clk 0:00:20]} 37. b4 {[%clk 0:00:20]}  Nxa4 {[%clk 0:00:20]} 38. Kd4 {[%clk 0:00:20]}  Nb6 {[%clk 0:00:19]} 39. Kc5 {[%clk 0:00:19]}  Nc8 {[%clk 0:00:18]} 40. Nd5 {[%clk 0:00:17]}  Ke6 {[%clk 0:00:19]} 41. Nb6 {[%clk 0:00:15]}  Nd6 {[%clk 0:00:18]} 42. g4 {[%clk 0:00:15]}  Ne4+ {[%clk 0:00:18]} 43. Kd4 {[%clk 0:00:15]}  Nf2 {[%clk 0:00:18]} 44. Na4 {[%clk 0:00:12]}  Kd6 {[%clk 0:00:18]} 45. Nc5 {[%clk 0:00:12]}  Kc6 {[%clk 0:00:17]} 46. Ne6 {[%clk 0:00:11]}  Nxh3 {[%clk 0:00:17]} 47. Ke3 {[%clk 0:00:08]}  Ng5 {[%clk 0:00:12]} 48. Nxg5 {[%clk 0:00:05]}  hxg5 {[%clk 0:00:12]} 49. Kd4 {[%clk 0:00:04]}  Kd6 {[%clk 0:00:12]} 50. c5+ {[%clk 0:00:03]}  Ke6 {[%clk 0:00:11]} 51. Ke4 {[%clk 0:00:03]}  Ke7 {[%clk 0:00:07]} 52. Ke5 {[%clk 0:00:02]}  Kd7 {[%clk 0:00:07]} 53. Kd5 {[%clk 0:00:02]}  Ke7 {[%clk 0:00:04]} 54. c6 {[%clk 0:00:02]}  bxc6+ {[%clk 0:00:05]} 55. Kxc6 {[%clk 0:00:02]}  Kd8 {[%clk 0:00:02]} 56. Kb6 {[%clk 0:00:01]}  Kc8 {[%clk 0:00:02]} 57. Kxa6 {[%clk 0:00:02]}  Kc7 {[%clk 0:00:03]} 58. Kb5 {[%clk 0:00:02]}  Kb7 {[%clk 0:00:03]} 59. Kc5 {[%clk 0:00:03]}  Kc7 {[%clk 0:00:04]} 60. Kd5 {[%clk 0:00:03]}  Kb6 {[%clk 0:00:04]} 61. Ke6 {[%clk 0:00:03]}  Kb5 {[%clk 0:00:05]} 62. Kf7 {[%clk 0:00:03]}  Kxb4 {[%clk 0:00:06]} 63. Kxg6 {[%clk 0:00:03]}  Kc5 {[%clk 0:00:07]} 64. Kxg5 {[%clk 0:00:03]}  Kd6 {[%clk 0:00:07]} 65. Kg6 {[%clk 0:00:03]}  Ke5 {[%clk 0:00:07]} 66. Kxg7 {[%clk 0:00:03]}  Kf4 {[%clk 0:00:08]} 67. Kh7 {[%clk 0:00:04]}  Kxg4 {[%clk 0:00:08]} 1/2-1/2


[Site "https://www.chess.com"]

[Event "Titled Tuesday Blitz June 20 Late 2023"]
[White "Volkov, Maksim"]
[Black "Bluebaum, Matthias"]
[WhiteFideId "54123070"]
[BlackFideId "24651516"]
[WhiteElo "2295"]
[BlackElo "2639"]
[Result "1/2-1/2"]
[Round "8"]
[TimeControl "180+2"]
[Date "2023.06.20"]
[WhiteClock "0:00:02"]
[BlackClock "0:00:17"]
[Board "17"]

1. d4 {[%clk 0:03:00]}  d5 {[%clk 0:03:00]} 2. c4 {[%clk 0:03:01]}  e6 {[%clk 0:03:01]} 3. Nf3 {[%clk 0:03:01]}  Nf6 {[%clk 0:03:01]} 4. g3 {[%clk 0:03:01]}  Nc6 {[%clk 0:03:02]} 5. Bg2 {[%clk 0:02:59]}  Bd6 {[%clk 0:03:02]} 6. O-O {[%clk 0:02:59]}  O-O {[%clk 0:03:02]} 7. Nbd2 {[%clk 0:02:56]}  a5 {[%clk 0:03:02]} 8. Re1 {[%clk 0:02:48]}  a4 {[%clk 0:02:55]} 9. e4 {[%clk 0:02:46]}  dxe4 {[%clk 0:02:55]} 10. Nxe4 {[%clk 0:02:47]}  Nxe4 {[%clk 0:02:56]} 11. Rxe4 {[%clk 0:02:47]}  h6 {[%clk 0:02:56]} 12. Bf4 {[%clk 0:02:37]}  f5 {[%clk 0:02:47]} 13. Re2 {[%clk 0:02:29]}  Bxf4 {[%clk 0:02:47]} 14. gxf4 {[%clk 0:02:29]}  Qd6 {[%clk 0:02:47]} 15. Qd2 {[%clk 0:02:29]}  a3 {[%clk 0:02:46]} 16. b3 {[%clk 0:02:28]}  Bd7 {[%clk 0:02:45]} 17. Rd1 {[%clk 0:02:22]}  Be8 {[%clk 0:02:40]} 18. Ne5 {[%clk 0:02:15]}  Bh5 {[%clk 0:02:38]} 19. Bf3 {[%clk 0:02:08]}  Bxf3 {[%clk 0:02:29]} 20. Nxf3 {[%clk 0:02:09]}  Rad8 {[%clk 0:02:28]} 21. Qe3 {[%clk 0:02:09]}  Rfe8 {[%clk 0:02:28]} 22. Red2 {[%clk 0:02:04]}  Qe7 {[%clk 0:01:59]} 23. Ne5 {[%clk 0:02:02]}  Qh4 {[%clk 0:01:58]} 24. Nxc6 {[%clk 0:01:50]}  bxc6 {[%clk 0:01:59]} 25. Qg3 {[%clk 0:01:51]}  Qh5 {[%clk 0:01:58]} 26. Kg2 {[%clk 0:01:49]}  Rd6 {[%clk 0:01:56]} 27. Qf3 {[%clk 0:01:49]}  Qf7 {[%clk 0:01:53]} 28. b4 {[%clk 0:01:40]}  Red8 {[%clk 0:01:51]} 29. Qxa3 {[%clk 0:01:38]}  Qg6+ {[%clk 0:01:37]} 30. Qg3 {[%clk 0:01:38]}  Qh5 {[%clk 0:01:38]} 31. a4 {[%clk 0:01:32]}  e5 {[%clk 0:01:35]} 32. Kh1 {[%clk 0:01:20]}  Rg6 {[%clk 0:01:35]} 33. Qe3 {[%clk 0:01:18]}  exd4 {[%clk 0:01:35]} 34. Qd3 {[%clk 0:01:15]}  Qg4 {[%clk 0:01:24]} 35. f3 {[%clk 0:01:12]}  Qxf4 {[%clk 0:01:21]} 36. a5 {[%clk 0:01:09]}  c5 {[%clk 0:01:21]} 37. b5 {[%clk 0:01:07]}  Re8 {[%clk 0:01:21]} 38. Re2 {[%clk 0:00:57]}  Rge6 {[%clk 0:01:21]} 39. Rxe6 {[%clk 0:00:44]}  Rxe6 {[%clk 0:01:22]} 40. a6 {[%clk 0:00:45]}  Re3 {[%clk 0:01:22]} 41. Qf1 {[%clk 0:00:45]}  Ra3 {[%clk 0:01:14]} 42. Rd3 {[%clk 0:00:40]}  Ra2 {[%clk 0:01:12]} 43. Qg1 {[%clk 0:00:36]}  Qe5 {[%clk 0:01:05]} 44. Rd1 {[%clk 0:00:22]}  Qe2 {[%clk 0:00:53]} 45. Rf1 {[%clk 0:00:22]}  Qxc4 {[%clk 0:00:53]} 46. Ra1 {[%clk 0:00:18]}  Qd5 {[%clk 0:00:41]} 47. Qf1 {[%clk 0:00:13]}  Qb3 {[%clk 0:00:13]} 48. a7 {[%clk 0:00:10]}  Qa4 {[%clk 0:00:14]} 49. a8=Q+ {[%clk 0:00:05]}  Qxa8 {[%clk 0:00:13]} 50. Qc4+ {[%clk 0:00:06]}  Kh7 {[%clk 0:00:14]} 51. Qxa2 {[%clk 0:00:05]}  Qxf3+ {[%clk 0:00:15]} 52. Qg2 {[%clk 0:00:06]}  Qc3 {[%clk 0:00:15]} 53. Rg1 {[%clk 0:00:06]}  d3 {[%clk 0:00:16]} 54. Qg6+ {[%clk 0:00:05]}  Kh8 {[%clk 0:00:16]} 55. Qe8+ {[%clk 0:00:06]}  Kh7 {[%clk 0:00:16]} 56. Qg6+ {[%clk 0:00:07]}  Kh8 {[%clk 0:00:17]} 57. Qxf5 {[%clk 0:00:07]}  c4 {[%clk 0:00:15]} 58. Qf8+ {[%clk 0:00:07]}  Kh7 {[%clk 0:00:16]} 59. Qf5+ {[%clk 0:00:08]}  Kh8 {[%clk 0:00:17]} 60. Qc8+ {[%clk 0:00:04]}  Kh7 {[%clk 0:00:17]} 61. Qf5+ {[%clk 0:00:02]}  Kh8 {[%clk 0:00:17]} 1/2-1/2


[Site "https://www.chess.com"]

[Event "Titled Tuesday Blitz June 20 Late 2023"]
[White "Andreikin, Dmitry"]
[Black "Fiorito, Joaquin"]
[WhiteFideId "4158814"]
[BlackFideId "180173"]
[WhiteElo "2736"]
[BlackElo "2199"]
[Result "0-1"]
[Round "8"]
[TimeControl "180+2"]
[Date "2023.06.20"]
[WhiteClock "0:00:02"]
[BlackClock "0:00:21"]
[Board "19"]

1. e4 {[%clk 0:03:00]}  c6 {[%clk 0:02:59]} 2. d4 {[%clk 0:02:57]}  d5 {[%clk 0:03:00]} 3. exd5 {[%clk 0:02:56]}  cxd5 {[%clk 0:03:00]} 4. Bd3 {[%clk 0:02:56]}  Nc6 {[%clk 0:03:00]} 5. c3 {[%clk 0:02:57]}  Nf6 {[%clk 0:03:01]} 6. Bf4 {[%clk 0:02:56]}  Bg4 {[%clk 0:03:01]} 7. Qb3 {[%clk 0:02:56]}  Qd7 {[%clk 0:03:01]} 8. Nd2 {[%clk 0:02:56]}  e6 {[%clk 0:03:02]} 9. Ngf3 {[%clk 0:02:55]}  Bd6 {[%clk 0:03:02]} 10. Bg3 {[%clk 0:02:53]}  O-O {[%clk 0:02:58]} 11. O-O {[%clk 0:02:53]}  Bxg3 {[%clk 0:02:55]} 12. fxg3 {[%clk 0:02:54]}  Qc7 {[%clk 0:02:52]} 13. Rae1 {[%clk 0:02:53]}  Rab8 {[%clk 0:02:50]} 14. Ne5 {[%clk 0:02:50]}  Nxe5 {[%clk 0:02:49]} 15. Rxe5 {[%clk 0:02:51]}  Nd7 {[%clk 0:02:38]} 16. Rg5 {[%clk 0:02:50]}  f5 {[%clk 0:02:18]} 17. Re1 {[%clk 0:02:17]}  Qd8 {[%clk 0:02:05]} 18. h4 {[%clk 0:02:15]}  Qf6 {[%clk 0:01:56]} 19. Qa4 {[%clk 0:02:05]}  Rbd8 {[%clk 0:01:49]} 20. Qxa7 {[%clk 0:01:54]}  h6 {[%clk 0:01:46]} 21. Rxg4 {[%clk 0:01:54]}  fxg4 {[%clk 0:01:47]} 22. Rf1 {[%clk 0:01:54]}  Qe7 {[%clk 0:01:43]} 23. Qxb7 {[%clk 0:01:46]}  Rb8 {[%clk 0:01:37]} 24. Rxf8+ {[%clk 0:01:45]}  Kxf8 {[%clk 0:01:38]} 25. Qc7 {[%clk 0:01:41]}  Rxb2 {[%clk 0:01:33]} 26. Bg6 {[%clk 0:01:32]}  Qf6 {[%clk 0:01:01]} 27. Qxd7 {[%clk 0:00:31]}  Qxg6 {[%clk 0:01:01]} 28. Qd8+ {[%clk 0:00:20]}  Kf7 {[%clk 0:00:59]} 29. Qc7+ {[%clk 0:00:14]}  Kg8 {[%clk 0:00:59]} 30. Qf4 {[%clk 0:00:14]}  Qd3 {[%clk 0:00:57]} 31. Nf1 {[%clk 0:00:14]}  Qe2 {[%clk 0:00:51]} 32. Ne3 {[%clk 0:00:13]}  Rb1+ {[%clk 0:00:45]} 33. Nf1 {[%clk 0:00:14]}  Ra1 {[%clk 0:00:36]} 34. h5 {[%clk 0:00:11]}  Rxa2 {[%clk 0:00:34]} 35. Ne3 {[%clk 0:00:08]}  Ra1+ {[%clk 0:00:34]} 36. Nf1 {[%clk 0:00:06]}  Re1 {[%clk 0:00:28]} 37. Qb8+ {[%clk 0:00:05]}  Kh7 {[%clk 0:00:28]} 38. Qf4 {[%clk 0:00:05]}  Qe4 {[%clk 0:00:25]} 39. Qxe4+ {[%clk 0:00:02]}  dxe4 {[%clk 0:00:25]} 40. Kf2 {[%clk 0:00:02]}  Rc1 {[%clk 0:00:26]} 41. Nd2 {[%clk 0:00:02]}  Rc2 {[%clk 0:00:25]} 42. Ke3 {[%clk 0:00:02]}  Rxc3+ {[%clk 0:00:25]} 43. Kxe4 {[%clk 0:00:02]}  Rxg3 {[%clk 0:00:26]} 44. Kf4 {[%clk 0:00:02]}  Rxg2 {[%clk 0:00:26]} 45. Ne4 {[%clk 0:00:03]}  Kg8 {[%clk 0:00:22]} 46. Ng3 {[%clk 0:00:01]}  Kf7 {[%clk 0:00:20]} 47. Kxg4 {[%clk 0:00:02]}  Kf6 {[%clk 0:00:18]} 48. Kf4 {[%clk 0:00:02]}  Rxg3 {[%clk 0:00:18]} 49. Kxg3 {[%clk 0:00:02]}  Kg5 {[%clk 0:00:19]} 50. Kf3 {[%clk 0:00:03]}  Kxh5 {[%clk 0:00:19]} 51. Kf4 {[%clk 0:00:04]}  Kg6 {[%clk 0:00:20]} 52. Ke5 {[%clk 0:00:02]}  Kf7 {[%clk 0:00:21]} 0-1


[Site "https://www.chess.com"]

[Event "Titled Tuesday Blitz June 20 Late 2023"]
[White "Kakabayev, Mergen"]
[Black "Eljanov, Pavel"]
[WhiteFideId "14002990"]
[BlackFideId "14102951"]
[WhiteElo "2240"]
[BlackElo "2598"]
[Result "0-1"]
[Round "8"]
[TimeControl "180+2"]
[Date "2023.06.20"]
[WhiteClock "0:01:18"]
[BlackClock "0:01:57"]
[Board "21"]

1. e4 {[%clk 0:03:00]}  c6 {[%clk 0:02:59]} 2. d4 {[%clk 0:03:00]}  d5 {[%clk 0:02:59]} 3. e5 {[%clk 0:03:01]}  Bf5 {[%clk 0:03:00]} 4. h4 {[%clk 0:03:01]}  h5 {[%clk 0:03:00]} 5. Bd3 {[%clk 0:03:01]}  Bxd3 {[%clk 0:03:00]} 6. Qxd3 {[%clk 0:03:02]}  Qa5+ {[%clk 0:03:00]} 7. Nd2 {[%clk 0:03:02]}  e6 {[%clk 0:03:00]} 8. Nf3 {[%clk 0:03:02]}  Nh6 {[%clk 0:03:00]} 9. O-O {[%clk 0:03:02]}  Nf5 {[%clk 0:02:59]} 10. c4 {[%clk 0:03:03]}  Be7 {[%clk 0:02:58]} 11. g3 {[%clk 0:03:02]}  O-O {[%clk 0:02:58]} 12. b3 {[%clk 0:03:01]}  Rd8 {[%clk 0:02:53]} 13. c5 {[%clk 0:02:58]}  b6 {[%clk 0:02:49]} 14. cxb6 {[%clk 0:02:51]}  axb6 {[%clk 0:02:41]} 15. Bb2 {[%clk 0:02:51]}  c5 {[%clk 0:02:41]} 16. a4 {[%clk 0:02:48]}  Nc6 {[%clk 0:02:41]} 17. Rfc1 {[%clk 0:02:46]}  Rac8 {[%clk 0:02:35]} 18. Nf1 {[%clk 0:02:41]}  cxd4 {[%clk 0:02:23]} 19. Qb5 {[%clk 0:01:55]}  Qxb5 {[%clk 0:02:18]} 20. axb5 {[%clk 0:01:55]}  Na5 {[%clk 0:02:19]} 21. Nxd4 {[%clk 0:01:39]}  Nxd4 {[%clk 0:02:11]} 22. Bxd4 {[%clk 0:01:40]}  Nxb3 {[%clk 0:02:04]} 23. Rxc8 {[%clk 0:01:39]}  Rxc8 {[%clk 0:02:04]} 24. Rd1 {[%clk 0:01:32]}  Nxd4 {[%clk 0:02:01]} 25. Rxd4 {[%clk 0:01:31]}  Rc2 {[%clk 0:02:00]} 26. Ne3 {[%clk 0:01:27]}  Rb2 {[%clk 0:01:58]} 27. Ra4 {[%clk 0:01:18]}  Bc5 {[%clk 0:01:57]} 0-1


[Site "https://www.chess.com"]

[Event "Titled Tuesday Blitz June 20 Late 2023"]
[White "Henriquez Villagra, Cristobal"]
[Black "Spata, German"]
[WhiteFideId "3409350"]
[BlackFideId "113026"]
[WhiteElo "2542"]
[BlackElo "2260"]
[Result "1-0"]
[Round "8"]
[TimeControl "180+2"]
[Date "2023.06.20"]
[WhiteClock "0:00:32"]
[BlackClock "0:00:08"]
[Board "22"]

1. e4 {[%clk 0:03:00]}  e6 {[%clk 0:02:45]} 2. d3 {[%clk 0:03:01]}  c5 {[%clk 0:02:45]} 3. Nd2 {[%clk 0:02:57]}  Nc6 {[%clk 0:02:43]} 4. c3 {[%clk 0:02:57]}  g6 {[%clk 0:02:40]} 5. h4 {[%clk 0:02:56]}  h6 {[%clk 0:02:38]} 6. h5 {[%clk 0:02:56]}  g5 {[%clk 0:02:38]} 7. g3 {[%clk 0:02:57]}  Bg7 {[%clk 0:02:34]} 8. f4 {[%clk 0:02:57]}  d5 {[%clk 0:02:31]} 9. Qe2 {[%clk 0:02:56]}  d4 {[%clk 0:02:27]} 10. c4 {[%clk 0:02:55]}  Nb4 {[%clk 0:02:25]} 11. Ndf3 {[%clk 0:02:54]}  gxf4 {[%clk 0:02:22]} 12. gxf4 {[%clk 0:02:54]}  Nf6 {[%clk 0:02:11]} 13. a3 {[%clk 0:02:52]}  Qa5 {[%clk 0:02:05]} 14. Kf2 {[%clk 0:02:23]}  Ng4+ {[%clk 0:02:02]} 15. Kg3 {[%clk 0:02:18]}  Ne3 {[%clk 0:01:58]} 16. Bd2 {[%clk 0:01:44]}  Qa4 {[%clk 0:01:46]} 17. b3 {[%clk 0:01:36]}  Qa6 {[%clk 0:01:44]} 18. Bh3 {[%clk 0:01:28]}  Rg8 {[%clk 0:01:40]} 19. Kh2 {[%clk 0:01:17]}  Nbc2 {[%clk 0:01:28]} 20. Ra2 {[%clk 0:01:16]}  Qd6 {[%clk 0:01:23]} 21. e5 {[%clk 0:01:10]}  Qe7 {[%clk 0:01:22]} 22. Qf2 {[%clk 0:01:06]}  f6 {[%clk 0:01:15]} 23. Bc1 {[%clk 0:01:05]}  fxe5 {[%clk 0:01:13]} 24. Rxc2 {[%clk 0:01:03]}  Nxc2 {[%clk 0:01:12]} 25. Qxc2 {[%clk 0:01:04]}  exf4 {[%clk 0:01:11]} 26. Bxf4 {[%clk 0:01:05]}  e5 {[%clk 0:01:09]} 27. Bg3 {[%clk 0:01:05]}  Bxh3 {[%clk 0:00:56]} 28. Nxh3 {[%clk 0:01:06]}  O-O-O {[%clk 0:00:56]} 29. Qe2 {[%clk 0:01:06]}  Rde8 {[%clk 0:00:54]} 30. Qe4 {[%clk 0:01:05]}  Rgf8 {[%clk 0:00:52]} 31. Nh4 {[%clk 0:01:05]}  Qd7 {[%clk 0:00:42]} 32. Ng6 {[%clk 0:01:00]}  Rf5 {[%clk 0:00:42]} 33. Nh4 {[%clk 0:00:49]}  Rxh5 {[%clk 0:00:37]} 34. Qg6 {[%clk 0:00:49]}  Rxh4 {[%clk 0:00:32]} 35. Bxh4 {[%clk 0:00:50]}  e4 {[%clk 0:00:32]} 36. dxe4 {[%clk 0:00:51]}  Be5+ {[%clk 0:00:31]} 37. Bg3 {[%clk 0:00:49]}  Bxg3+ {[%clk 0:00:29]} 38. Qxg3 {[%clk 0:00:50]}  Rxe4 {[%clk 0:00:29]} 39. Rf1 {[%clk 0:00:50]}  Re2+ {[%clk 0:00:26]} 40. Kg1 {[%clk 0:00:49]}  Re3 {[%clk 0:00:23]} 41. Rf8+ {[%clk 0:00:48]}  Re8 {[%clk 0:00:23]} 42. Qg8 {[%clk 0:00:41]}  Kd8 {[%clk 0:00:15]} 43. Nf4 {[%clk 0:00:38]}  Rxf8 {[%clk 0:00:10]} 44. Qxf8+ {[%clk 0:00:38]}  Qe8 {[%clk 0:00:11]} 45. Ne6+ {[%clk 0:00:35]}  Kd7 {[%clk 0:00:11]} 46. Nxc5+ {[%clk 0:00:36]}  Kd8 {[%clk 0:00:11]} 47. Nxb7+ {[%clk 0:00:36]}  Kd7 {[%clk 0:00:12]} 48. Nc5+ {[%clk 0:00:36]}  Kd8 {[%clk 0:00:12]} 49. Ne6+ {[%clk 0:00:37]}  Kd7 {[%clk 0:00:12]} 50. Qxe8+ {[%clk 0:00:36]}  Kxe8 {[%clk 0:00:13]} 51. Nxd4 {[%clk 0:00:37]}  Kd7 {[%clk 0:00:13]} 52. b4 {[%clk 0:00:38]}  Kd6 {[%clk 0:00:13]} 53. c5+ {[%clk 0:00:38]}  Kd5 {[%clk 0:00:13]} 54. Kf2 {[%clk 0:00:39]}  a5 {[%clk 0:00:14]} 55. c6 {[%clk 0:00:32]}  Kd6 {[%clk 0:00:08]} 56. b5 {[%clk 0:00:32]} 1-0


[Site "https://www.chess.com"]

[Event "Titled Tuesday Blitz June 20 Late 2023"]
[White "Tari, Aryan"]
[Black "Seemann, Jakub"]
[WhiteFideId "1510045"]
[BlackFideId "21874697"]
[WhiteElo "2586"]
[BlackElo "2364"]
[Result "1-0"]
[Round "8"]
[TimeControl "180+2"]
[Date "2023.06.20"]
[WhiteClock "0:00:28"]
[BlackClock "0:00:31"]
[Board "23"]

1. e4 {[%clk 0:03:00]}  c6 {[%clk 0:02:58]} 2. d4 {[%clk 0:03:00]}  d5 {[%clk 0:02:59]} 3. exd5 {[%clk 0:02:58]}  cxd5 {[%clk 0:02:59]} 4. Nf3 {[%clk 0:02:57]}  Nc6 {[%clk 0:02:58]} 5. Ne5 {[%clk 0:02:56]}  Nf6 {[%clk 0:02:48]} 6. Bb5 {[%clk 0:02:53]}  Bd7 {[%clk 0:02:47]} 7. Nxd7 {[%clk 0:02:52]}  Qxd7 {[%clk 0:02:48]} 8. c3 {[%clk 0:02:52]}  e6 {[%clk 0:02:49]} 9. O-O {[%clk 0:02:52]}  Bd6 {[%clk 0:02:49]} 10. Re1 {[%clk 0:02:50]}  O-O {[%clk 0:02:50]} 11. Nd2 {[%clk 0:02:51]}  a6 {[%clk 0:02:41]} 12. Bd3 {[%clk 0:02:51]}  b5 {[%clk 0:02:41]} 13. Nf3 {[%clk 0:02:47]}  Qc7 {[%clk 0:02:37]} 14. Qe2 {[%clk 0:02:47]}  b4 {[%clk 0:02:28]} 15. Bg5 {[%clk 0:02:24]}  bxc3 {[%clk 0:02:24]} 16. bxc3 {[%clk 0:02:23]}  Nd7 {[%clk 0:02:24]} 17. Bxa6 {[%clk 0:02:22]}  Qa5 {[%clk 0:02:14]} 18. Bb7 {[%clk 0:02:19]}  Rac8 {[%clk 0:02:07]} 19. Bxc8 {[%clk 0:02:14]}  Rxc8 {[%clk 0:02:08]} 20. Bd2 {[%clk 0:02:12]}  Qa4 {[%clk 0:02:01]} 21. Reb1 {[%clk 0:02:12]}  Na5 {[%clk 0:01:58]} 22. Qb5 {[%clk 0:02:11]}  Qxb5 {[%clk 0:01:56]} 23. Rxb5 {[%clk 0:02:12]}  Nc4 {[%clk 0:01:57]} 24. a4 {[%clk 0:02:06]}  Nb8 {[%clk 0:01:54]} 25. a5 {[%clk 0:01:59]}  Na6 {[%clk 0:01:55]} 26. Be3 {[%clk 0:01:49]}  Bc7 {[%clk 0:01:53]} 27. Nd2 {[%clk 0:01:49]}  Nd6 {[%clk 0:01:53]} 28. Rbb1 {[%clk 0:01:46]}  Ra8 {[%clk 0:01:50]} 29. Bf4 {[%clk 0:01:46]}  Kf8 {[%clk 0:01:46]} 30. Rb6 {[%clk 0:01:45]}  Ke7 {[%clk 0:01:37]} 31. Bxd6+ {[%clk 0:01:34]}  Bxd6 {[%clk 0:01:37]} 32. c4 {[%clk 0:01:34]}  Bb4 {[%clk 0:01:35]} 33. Rb7+ {[%clk 0:01:21]}  Kf6 {[%clk 0:01:29]} 34. Nf3 {[%clk 0:01:21]}  dxc4 {[%clk 0:01:25]} 35. Ne5 {[%clk 0:01:21]}  c3 {[%clk 0:01:26]} 36. Rxf7+ {[%clk 0:01:02]}  Kg5 {[%clk 0:01:26]} 37. Rxg7+ {[%clk 0:01:02]}  Kf4 {[%clk 0:01:25]} 38. Re1 {[%clk 0:00:40]}  c2 {[%clk 0:01:18]} 39. Rf7+ {[%clk 0:00:39]}  Kg5 {[%clk 0:01:15]} 40. f4+ {[%clk 0:00:34]}  Kh6 {[%clk 0:01:11]} 41. g4 {[%clk 0:00:32]}  Rh8 {[%clk 0:00:37]} 42. Rc1 {[%clk 0:00:32]}  Bd2 {[%clk 0:00:32]} 43. Rxc2 {[%clk 0:00:31]}  Be3+ {[%clk 0:00:33]} 44. Kg2 {[%clk 0:00:31]}  Bxd4 {[%clk 0:00:31]} 45. Rc6 {[%clk 0:00:28]} 1-0


[Site "https://www.chess.com"]